[Event "Late-Titled-Tuesday-Blitz-July-09-2024"]
[Site "Chess.com"]
[Date "2024.07.09"]
[Round "2"]
[White "Indefatigable11"]
[Black "TigrVShlyape"]
[Result "0-1"]
[WhiteElo "2414"]
[BlackElo "2960"]
[TimeControl "180+1"]
[EndTime "14:17:57 PDT"]
[Termination "TigrVShlyape won by resignation"]

1. d4 {[%clk 0:03:00.9]} 1... f5 {[%clk 0:02:58.6]} 2. c4 {[%clk 0:03:01]} 2...
Nf6 {[%clk 0:02:57.9]} 3. Nc3 {[%clk 0:03:01.2]} 3... e6 {[%clk 0:02:58.2]} 4.
Nf3 {[%clk 0:03:01]} 4... Bb4 {[%clk 0:02:57.6]} 5. g3 {[%clk 0:02:57.4]} 5...
Ne4 {[%clk 0:02:56.3]} 6. Bd2 {[%clk 0:02:57.4]} 6... Bxc3 {[%clk 0:02:55.6]} 7.
Bxc3 {[%clk 0:02:55.3]} 7... Nxc3 {[%clk 0:02:55.8]} 8. bxc3 {[%clk 0:02:55.6]}
8... b6 {[%clk 0:02:53.8]} 9. Bg2 {[%clk 0:02:55.9]} 9... Bb7 {[%clk 0:02:54.4]}
10. O-O {[%clk 0:02:56.3]} 10... O-O {[%clk 0:02:53.2]} 11. Qd2 {[%clk
0:02:55.9]} 11... Nc6 {[%clk 0:02:52.9]} 12. Rfe1 {[%clk 0:02:48.8]} 12... Na5
{[%clk 0:02:52.9]} 13. c5 {[%clk 0:02:26.1]} 13... Qf6 {[%clk 0:02:48.9]} 14.
cxb6 {[%clk 0:02:25]} 14... axb6 {[%clk 0:02:48.6]} 15. Ne5 {[%clk 0:02:22.8]}
15... Bxg2 {[%clk 0:02:40.2]} 16. Kxg2 {[%clk 0:02:20.6]} 16... Rad8 {[%clk
0:02:36.8]} 17. Qd3 {[%clk 0:02:19]} 17... f4 {[%clk 0:02:34.6]} 18. Rf1 {[%clk
0:02:11.3]} 18... d6 {[%clk 0:02:34]} 19. Nc4 {[%clk 0:02:08.4]} 19... Nc6
{[%clk 0:02:34.1]} 20. Nd2 {[%clk 0:02:05.1]} 20... d5 {[%clk 0:02:28.9]} 21.
Nf3 {[%clk 0:02:02.3]} 21... e5 {[%clk 0:02:11.1]} 22. dxe5 {[%clk 0:01:51.6]}
22... Nxe5 {[%clk 0:02:10.9]} 23. Nxe5 {[%clk 0:01:49.2]} 23... Qxe5 {[%clk
0:02:11.2]} 24. a4 {[%clk 0:01:46.2]} 24... Ra8 {[%clk 0:02:04.7]} 25. Rfd1
{[%clk 0:01:38.5]} 25... Ra5 {[%clk 0:02:03.9]} 26. c4 {[%clk 0:01:32.6]} 26...
Qe4+ {[%clk 0:01:46.1]} 27. Qxe4 {[%clk 0:01:10.9]} 27... dxe4 {[%clk
0:01:45.7]} 28. Rd7 {[%clk 0:01:11]} 28... Rc5 {[%clk 0:01:41.6]} 29. Rd4 {[%clk
0:01:09.8]} 29... f3+ {[%clk 0:01:40.5]} 30. exf3 {[%clk 0:01:07.5]} 30... exf3+
{[%clk 0:01:40.9]} 31. Kf1 {[%clk 0:01:05.9]} 31... h6 {[%clk 0:01:37.8]} 32.
Ke1 {[%clk 0:00:45.8]} 32... Re8+ {[%clk 0:01:36.9]} 33. Kf1 {[%clk 0:00:44.8]}
33... Re6 {[%clk 0:01:25.1]} 34. Rb1 {[%clk 0:00:43.2]} 34... Kh7 {[%clk
0:01:20.3]} 35. Rb5 {[%clk 0:00:41]} 35... Rec6 {[%clk 0:01:20.5]} 36. Rb4
{[%clk 0:00:36.1]} 36... g5 {[%clk 0:01:18.9]} 37. Re4 {[%clk 0:00:34.1]} 37...
Kg6 {[%clk 0:01:18.2]} 38. g4 {[%clk 0:00:32.6]} 38... h5 {[%clk 0:01:17.8]} 39.
h3 {[%clk 0:00:32.3]} 39... Rd6 {[%clk 0:01:16.2]} 40. Kg1 {[%clk 0:00:29.8]}
40... h4 {[%clk 0:01:10.3]} 41. Kf1 {[%clk 0:00:25]} 41... Rd1+ {[%clk 0:01:09]}
42. Re1 {[%clk 0:00:25.2]} 42... Rd4 {[%clk 0:01:08.6]} 43. Re7 {[%clk
0:00:20.8]} 43... Rdxc4 {[%clk 0:01:07.1]} 44. Re6+ {[%clk 0:00:20.9]} 44... Kf7
{[%clk 0:01:06.7]} 45. Rxc4 {[%clk 0:00:20.3]} 45... Rxc4 {[%clk 0:01:06.6]} 46.
Re3 {[%clk 0:00:19.2]} 46... Rc1+ {[%clk 0:01:05.1]} 47. Re1 {[%clk 0:00:19.2]}
47... Rc4 {[%clk 0:01:01.5]} 48. Ra1 {[%clk 0:00:17.4]} 48... c5 {[%clk
0:00:59]} 49. Ke1 {[%clk 0:00:16.6]} 49... Re4+ {[%clk 0:00:58.9]} 50. Kf1
{[%clk 0:00:15.2]} 50... Ke6 {[%clk 0:00:59.2]} 51. a5 {[%clk 0:00:14.8]} 51...
bxa5 {[%clk 0:00:58.9]} 52. Rxa5 {[%clk 0:00:15.4]} 52... Rb4 {[%clk 0:00:57.5]}
53. Ke1 {[%clk 0:00:15.3]} 53... Kd5 {[%clk 0:00:56.5]} 54. Kd2 {[%clk
0:00:14.9]} 54... Kd4 {[%clk 0:00:56.6]} 55. Ra7 {[%clk 0:00:14.6]} 55... Rb2+
{[%clk 0:00:56.7]} 56. Ke1 {[%clk 0:00:14.6]} 56... Re2+ {[%clk 0:00:56.4]} 57.
Kf1 {[%clk 0:00:15.1]} 57... c4 {[%clk 0:00:56.3]} 58. Re7 {[%clk 0:00:14.9]}
58... Rxe7 {[%clk 0:00:55.3]} 0-1

[Event "Late-Titled-Tuesday-Blitz-July-09-2024"]
[Site "Chess.com"]
[Date "2024.07.09"]
[Round "2"]
[White "KorolDimitriy75"]
[Black "tsvet2005"]
[Result "1-0"]
[WhiteElo "2410"]
[BlackElo "2679"]
[TimeControl "180+1"]
[EndTime "14:17:57 PDT"]
[Termination "KorolDimitriy75 won by checkmate"]

1. d4 {[%clk 0:03:00.9]} 1... Nf6 {[%clk 0:02:59.3]} 2. c4 {[%clk 0:03:01.3]}
2... e6 {[%clk 0:02:59.2]} 3. Nc3 {[%clk 0:03:01.8]} 3... Bb4 {[%clk 0:02:59.2]}
4. Qc2 {[%clk 0:03:01.6]} 4... O-O {[%clk 0:02:55.2]} 5. e4 {[%clk 0:03:00.1]}
5... c5 {[%clk 0:02:48.5]} 6. e5 {[%clk 0:02:59.1]} 6... cxd4 {[%clk 0:02:23.4]}
7. a3 {[%clk 0:02:45.4]} 7... dxc3 {[%clk 0:02:08.9]} 8. axb4 {[%clk 0:02:44.8]}
8... cxb2 {[%clk 0:01:35.7]} 9. Bxb2 {[%clk 0:02:45.7]} 9... Ne8 {[%clk
0:01:35.7]} 10. Bd3 {[%clk 0:02:45.3]} 10... Nc6 {[%clk 0:01:21.7]} 11. Bxh7+
{[%clk 0:01:57.1]} 11... Kh8 {[%clk 0:01:21.3]} 12. b5 {[%clk 0:01:57.2]} 12...
Ne7 {[%clk 0:01:12.3]} 13. Bd3 {[%clk 0:01:48.7]} 13... d6 {[%clk 0:00:53.4]}
14. Nf3 {[%clk 0:01:45.4]} 14... d5 {[%clk 0:00:46]} 15. O-O {[%clk 0:01:41.4]}
15... b6 {[%clk 0:00:40.6]} 16. c5 {[%clk 0:01:02.3]} 16... bxc5 {[%clk
0:00:30.5]} 17. Qxc5 {[%clk 0:01:03.2]} 17... Ng6 {[%clk 0:00:21.7]} 18. Bxg6
{[%clk 0:01:00.4]} 18... Nc7 {[%clk 0:00:18.7]} 19. Bd3 {[%clk 0:00:57.6]} 19...
Bb7 {[%clk 0:00:16.8]} 20. Rxa7 {[%clk 0:00:54.8]} 20... Rxa7 {[%clk 0:00:15.8]}
21. Qxa7 {[%clk 0:00:55.7]} 21... d4 {[%clk 0:00:16.7]} 22. Qxb7 {[%clk
0:00:53.4]} 22... Nd5 {[%clk 0:00:17.4]} 23. Be4 {[%clk 0:00:51.2]} 23... Nf4
{[%clk 0:00:17]} 24. Nxd4 {[%clk 0:00:49.1]} 24... Qg5 {[%clk 0:00:16.4]} 25. g3
{[%clk 0:00:46.7]} 25... Nh3+ {[%clk 0:00:08.7]} 26. Kg2 {[%clk 0:00:45]} 26...
Nf4+ {[%clk 0:00:07.8]} 27. Kh1 {[%clk 0:00:44.4]} 27... Nh3 {[%clk 0:00:08.2]}
28. Bg2 {[%clk 0:00:43.2]} 28... Nxf2+ {[%clk 0:00:05.7]} 29. Rxf2 {[%clk
0:00:42.9]} 29... Qe3 {[%clk 0:00:06.6]} 30. Rf1 {[%clk 0:00:42.3]} 30... Rd8
{[%clk 0:00:07.1]} 31. Qf3 {[%clk 0:00:41.9]} 31... Qd2 {[%clk 0:00:06.5]} 32.
Qf2 {[%clk 0:00:41.5]} 32... Qb4 {[%clk 0:00:06.3]} 33. h3 {[%clk 0:00:40]}
33... Rc8 {[%clk 0:00:05]} 34. Kh2 {[%clk 0:00:39.4]} 34... Rc4 {[%clk 0:00:03]}
35. Ba1 {[%clk 0:00:39]} 35... Qa4 {[%clk 0:00:01.6]} 36. Qxf7 {[%clk
0:00:38.1]} 36... Qb4 {[%clk 0:00:02.5]} 37. Qf8+ {[%clk 0:00:36.7]} 37... Kh7
{[%clk 0:00:01.5]} 38. Qxb4 {[%clk 0:00:36.3]} 38... Kh6 {[%clk 0:00:02.4]} 39.
Qxc4 {[%clk 0:00:35.6]} 39... Kg5 {[%clk 0:00:03.3]} 40. Qc1+ {[%clk 0:00:35.3]}
40... Kh5 {[%clk 0:00:03.6]} 41. Qf4 {[%clk 0:00:34.8]} 41... g6 {[%clk
0:00:04.5]} 42. Qh4# {[%clk 0:00:34.1]} 1-0

[Event "Late-Titled-Tuesday-Blitz-July-09-2024"]
[Site "Chess.com"]
[Date "2024.07.09"]
[Round "2"]
[White "rionelG"]
[Black "axlbvRR"]
[Result "1-0"]
[WhiteElo "2426"]
[BlackElo "1935"]
[TimeControl "180+1"]
[EndTime "14:17:58 PDT"]
[Termination "rionelG won by checkmate"]

1. e4 {[%clk 0:03:00.9]} 1... e6 {[%clk 0:03:00.9]} 2. d4 {[%clk 0:02:58.9]}
2... d5 {[%clk 0:03:01.4]} 3. Nd2 {[%clk 0:02:59.2]} 3... Nf6 {[%clk 0:03:01.1]}
4. e5 {[%clk 0:02:59.1]} 4... Nfd7 {[%clk 0:03:01.6]} 5. c3 {[%clk 0:02:58.4]}
5... c5 {[%clk 0:03:02.1]} 6. f4 {[%clk 0:02:58.6]} 6... Nc6 {[%clk 0:03:01]} 7.
Ndf3 {[%clk 0:02:58.6]} 7... Qb6 {[%clk 0:03:01]} 8. g3 {[%clk 0:02:57.7]} 8...
cxd4 {[%clk 0:02:55.4]} 9. cxd4 {[%clk 0:02:58.6]} 9... Bb4+ {[%clk 0:02:44.4]}
10. Kf2 {[%clk 0:02:58.3]} 10... O-O {[%clk 0:02:29.8]} 11. Kg2 {[%clk
0:02:55.3]} 11... f6 {[%clk 0:02:28.9]} 12. Bd3 {[%clk 0:02:52.3]} 12... Be7
{[%clk 0:02:22.7]} 13. Ne2 {[%clk 0:02:50.6]} 13... f5 {[%clk 0:02:08.1]} 14. a3
{[%clk 0:02:29.3]} 14... Qd8 {[%clk 0:02:07.2]} 15. b4 {[%clk 0:02:27.8]} 15...
Qe8 {[%clk 0:02:03.1]} 16. Nc3 {[%clk 0:02:12.3]} 16... a6 {[%clk 0:02:01.6]}
17. b5 {[%clk 0:02:07.3]} 17... Nd8 {[%clk 0:01:58]} 18. Qb3 {[%clk 0:01:48.3]}
18... Qh5 {[%clk 0:01:48]} 19. Be2 {[%clk 0:01:44.1]} 19... Qh6 {[%clk
0:01:42.5]} 20. a4 {[%clk 0:01:38.3]} 20... Kh8 {[%clk 0:01:41]} 21. Ba3 {[%clk
0:01:31.9]} 21... Bxa3 {[%clk 0:01:29.6]} 22. Qxa3 {[%clk 0:01:32.8]} 22... Nf7
{[%clk 0:01:26]} 23. Qd6 {[%clk 0:01:10.8]} 23... Nxd6 {[%clk 0:01:25.2]} 24.
exd6 {[%clk 0:01:10.5]} 24... Nf6 {[%clk 0:01:21.8]} 25. Ne5 {[%clk 0:01:05.1]}
25... Nd7 {[%clk 0:01:04.3]} 26. bxa6 {[%clk 0:00:54]} 26... bxa6 {[%clk
0:01:02]} 27. Rab1 {[%clk 0:00:53]} 27... g5 {[%clk 0:00:57.9]} 28. Rhf1 {[%clk
0:00:44.9]} 28... Nxe5 {[%clk 0:00:52.2]} 29. dxe5 {[%clk 0:00:43.9]} 29... d4
{[%clk 0:00:52.1]} 30. Nd1 {[%clk 0:00:41.7]} 30... Bd7 {[%clk 0:00:52.2]} 31.
Kg1 {[%clk 0:00:38.9]} 31... Bc6 {[%clk 0:00:50.6]} 32. Rb6 {[%clk 0:00:37.2]}
32... Rac8 {[%clk 0:00:49.4]} 33. Bxa6 {[%clk 0:00:35.7]} 33... Rc7 {[%clk
0:00:48.9]} 34. dxc7 {[%clk 0:00:29.4]} 34... gxf4 {[%clk 0:00:45.8]} 35. Rxf4
{[%clk 0:00:22.6]} 35... Bd7 {[%clk 0:00:39.4]} 36. Rb8 {[%clk 0:00:20.2]} 36...
Kg7 {[%clk 0:00:35.7]} 37. Rxd4 {[%clk 0:00:20.2]} 37... Qe3+ {[%clk 0:00:28.5]}
38. Nxe3 {[%clk 0:00:18.7]} 38... f4 {[%clk 0:00:20.1]} 39. Rxf8 {[%clk
0:00:15.5]} 39... Kxf8 {[%clk 0:00:20.2]} 40. Rxd7 {[%clk 0:00:15.2]} 40... fxe3
{[%clk 0:00:20.2]} 41. c8=Q# {[%clk 0:00:15.1]} 1-0

[Event "Late-Titled-Tuesday-Blitz-July-09-2024"]
[Site "Chess.com"]
[Date "2024.07.09"]
[Round "2"]
[White "Gangster-accountant01"]
[Black "MetiForce"]
[Result "0-1"]
[WhiteElo "2591"]
[BlackElo "2892"]
[TimeControl "180+1"]
[EndTime "14:17:59 PDT"]
[Termination "MetiForce won by resignation"]

1. d4 {[%clk 0:02:55]} 1... Nf6 {[%clk 0:02:56.5]} 2. c4 {[%clk 0:02:53.3]} 2...
e6 {[%clk 0:02:56.6]} 3. g3 {[%clk 0:02:50.1]} 3... d5 {[%clk 0:02:56.9]} 4. Nf3
{[%clk 0:02:49.7]} 4... dxc4 {[%clk 0:02:56.6]} 5. Bg2 {[%clk 0:02:49.3]} 5...
Bd7 {[%clk 0:02:57.2]} 6. Nbd2 {[%clk 0:02:30.5]} 6... c5 {[%clk 0:02:45.3]} 7.
Nxc4 {[%clk 0:02:08.7]} 7... Bc6 {[%clk 0:02:40]} 8. O-O {[%clk 0:01:38.8]} 8...
Nbd7 {[%clk 0:02:36.5]} 9. dxc5 {[%clk 0:01:28]} 9... Bxc5 {[%clk 0:02:32.2]}
10. Nd6+ {[%clk 0:01:18.8]} 10... Ke7 {[%clk 0:02:31.6]} 11. Nc4 {[%clk
0:01:14.9]} 11... Nb6 {[%clk 0:02:27.1]} 12. Nce5 {[%clk 0:01:07.3]} 12... Ba4
{[%clk 0:02:12]} 13. Qxd8+ {[%clk 0:00:37.9]} 13... Rhxd8 {[%clk 0:02:11.3]} 14.
Nd3 {[%clk 0:00:38.4]} 14... Bd6 {[%clk 0:02:05.1]} 15. b3 {[%clk 0:00:33.6]}
15... Bb5 {[%clk 0:02:01.6]} 16. Bb2 {[%clk 0:00:33.9]} 16... Bxd3 {[%clk
0:01:58.3]} 17. exd3 {[%clk 0:00:34.5]} 17... Nbd5 {[%clk 0:01:55.5]} 18. Rfc1
{[%clk 0:00:31]} 18... Rac8 {[%clk 0:01:55.3]} 19. Ne5 {[%clk 0:00:26.7]} 19...
g6 {[%clk 0:01:44.4]} 20. Nc4 {[%clk 0:00:19.9]} 20... Bc5 {[%clk 0:01:29.3]}
21. d4 {[%clk 0:00:19.4]} 21... Bb4 {[%clk 0:01:29.8]} 22. a3 {[%clk 0:00:19]}
22... Bd6 {[%clk 0:01:30]} 23. Nxd6 {[%clk 0:00:18]} 23... Kxd6 {[%clk
0:01:30.9]} 24. a4 {[%clk 0:00:16.8]} 24... Kd7 {[%clk 0:01:28.3]} 25. Bf1
{[%clk 0:00:14.2]} 25... a6 {[%clk 0:01:28]} 26. Bc4 {[%clk 0:00:13.4]} 26...
Ne4 {[%clk 0:01:25]} 27. Bxd5 {[%clk 0:00:11.5]} 27... exd5 {[%clk 0:01:25]} 28.
Ba3 {[%clk 0:00:07.2]} 28... Nd2 {[%clk 0:01:24.5]} 29. Rxc8 {[%clk 0:00:04.5]}
29... Rxc8 {[%clk 0:01:25.4]} 30. Kg2 {[%clk 0:00:05.1]} 30... Nxb3 {[%clk
0:01:18]} 31. Rb1 {[%clk 0:00:04.8]} 31... Na5 {[%clk 0:01:01.7]} 32. Bc5 {[%clk
0:00:03.6]} 32... Re8 {[%clk 0:00:56.5]} 33. Rb6 {[%clk 0:00:03.5]} 33... Re6
{[%clk 0:00:52.1]} 34. Rb1 {[%clk 0:00:01.6]} 34... Kc7 {[%clk 0:00:49.4]} 35.
f4 {[%clk 0:00:02.3]} 35... Nc4 {[%clk 0:00:49]} 36. Bb4 {[%clk 0:00:02.8]}
36... a5 {[%clk 0:00:46.4]} 37. Be1 {[%clk 0:00:03]} 37... f5 {[%clk 0:00:45.3]}
38. Bf2 {[%clk 0:00:02.7]} 38... b6 {[%clk 0:00:45.2]} 39. h4 {[%clk 0:00:01.7]}
39... h5 {[%clk 0:00:44.8]} 40. Kf3 {[%clk 0:00:01.8]} 40... Nd2+ {[%clk
0:00:44.2]} 0-1

[Event "Late-Titled-Tuesday-Blitz-July-09-2024"]
[Site "Chess.com"]
[Date "2024.07.09"]
[Round "2"]
[White "Jahonas"]
[Black "Juliana_Figueira"]
[Result "1-0"]
[WhiteElo "2436"]
[BlackElo "1998"]
[TimeControl "180+1"]
[EndTime "14:17:59 PDT"]
[Termination "Jahonas won on time"]

1. d4 {[%clk 0:03:00.9]} 1... Nf6 {[%clk 0:02:57.5]} 2. Bf4 {[%clk 0:03:00.8]}
2... e6 {[%clk 0:02:49.7]} 3. e3 {[%clk 0:03:00.3]} 3... d5 {[%clk 0:02:48.2]}
4. Nf3 {[%clk 0:02:59.9]} 4... Be7 {[%clk 0:02:47.3]} 5. c3 {[%clk 0:02:59.5]}
5... O-O {[%clk 0:02:47.8]} 6. Bd3 {[%clk 0:02:59.1]} 6... c5 {[%clk 0:02:48.4]}
7. h3 {[%clk 0:02:58.3]} 7... Nc6 {[%clk 0:02:46.6]} 8. O-O {[%clk 0:02:57.7]}
8... a6 {[%clk 0:02:47.1]} 9. Nbd2 {[%clk 0:02:55]} 9... b5 {[%clk 0:02:47.1]}
10. b3 {[%clk 0:02:53]} 10... Bb7 {[%clk 0:02:41.6]} 11. Ne5 {[%clk 0:02:50.1]}
11... Nxe5 {[%clk 0:02:37.3]} 12. Bxe5 {[%clk 0:02:44.5]} 12... Bd6 {[%clk
0:02:37.6]} 13. f4 {[%clk 0:02:40.8]} 13... Qc7 {[%clk 0:02:27.3]} 14. Bxf6
{[%clk 0:02:31]} 14... gxf6 {[%clk 0:02:23.8]} 15. Bxh7+ {[%clk 0:01:50.6]}
15... Kxh7 {[%clk 0:02:00]} 16. Qh5+ {[%clk 0:01:45.1]} 16... Kg7 {[%clk
0:01:57.9]} 17. Qg4+ {[%clk 0:01:11]} 17... Kh7 {[%clk 0:01:47.1]} 18. Qh5+
{[%clk 0:00:57.9]} 18... Kg7 {[%clk 0:01:45.8]} 19. Qg4+ {[%clk 0:00:58.1]}
19... Kh7 {[%clk 0:01:39.5]} 20. Qh4+ {[%clk 0:00:55.5]} 20... Kg7 {[%clk
0:01:34.4]} 21. Rf3 {[%clk 0:00:55.3]} 21... Rg8 {[%clk 0:01:27.6]} 22. Rg3+
{[%clk 0:00:52.4]} 22... Kf8 {[%clk 0:01:27.8]} 23. Rxg8+ {[%clk 0:00:50.5]}
23... Kxg8 {[%clk 0:01:28]} 24. Rf1 {[%clk 0:00:45]} 24... Kf8 {[%clk 0:01:28]}
25. Qxf6 {[%clk 0:00:43.7]} 25... Ke8 {[%clk 0:01:22.8]} 26. f5 {[%clk
0:00:40.1]} 26... Qe7 {[%clk 0:01:11.8]} 27. fxe6 {[%clk 0:00:36.8]} 27... Qxe6
{[%clk 0:00:57.1]} 28. Qg5 {[%clk 0:00:31.1]} 28... Kd7 {[%clk 0:00:37.1]} 29.
Rf6 {[%clk 0:00:29.8]} 29... Qe7 {[%clk 0:00:26.8]} 30. Qf5+ {[%clk 0:00:25.3]}
30... Kc6 {[%clk 0:00:19.9]} 31. e4 {[%clk 0:00:24.3]} 31... dxe4 {[%clk
0:00:12.8]} 32. dxc5 {[%clk 0:00:22.1]} 32... e3 {[%clk 0:00:04.9]} 33. Ne4
{[%clk 0:00:21.9]} 33... Bc8 {[%clk 0:00:04.2]} 34. Qf3 {[%clk 0:00:17.7]} 34...
e2 {[%clk 0:00:01.2]} 35. Nxd6+ {[%clk 0:00:17.6]} 1-0

[Event "Late-Titled-Tuesday-Blitz-July-09-2024"]
[Site "Chess.com"]
[Date "2024.07.09"]
[Round "2"]
[White "K_A_S_T_O_R"]
[Black "Payyappat"]
[Result "1-0"]
[WhiteElo "2841"]
[BlackElo "2411"]
[TimeControl "180+1"]
[EndTime "14:18:00 PDT"]
[Termination "K_A_S_T_O_R won on time"]

1. e4 {[%clk 0:03:00.9]} 1... c6 {[%clk 0:02:59.4]} 2. Nc3 {[%clk 0:02:53.9]}
2... d5 {[%clk 0:03:00.3]} 3. Nf3 {[%clk 0:02:54.2]} 3... dxe4 {[%clk
0:02:59.3]} 4. Nxe4 {[%clk 0:02:53.5]} 4... Nf6 {[%clk 0:03:00.2]} 5. Nxf6+
{[%clk 0:02:52.6]} 5... exf6 {[%clk 0:03:01.1]} 6. d4 {[%clk 0:02:49.6]} 6...
Bd6 {[%clk 0:03:00.6]} 7. Be2 {[%clk 0:02:49.6]} 7... O-O {[%clk 0:02:59.8]} 8.
O-O {[%clk 0:02:49.1]} 8... Re8 {[%clk 0:02:56.7]} 9. c4 {[%clk 0:02:45.6]} 9...
Nd7 {[%clk 0:02:57]} 10. Be3 {[%clk 0:02:45.3]} 10... Nf8 {[%clk 0:02:56.8]} 11.
h3 {[%clk 0:02:44.8]} 11... Bf5 {[%clk 0:02:52.9]} 12. Bd3 {[%clk 0:02:44.6]}
12... Be6 {[%clk 0:02:50.3]} 13. Qc2 {[%clk 0:02:42.8]} 13... Ng6 {[%clk
0:02:50.8]} 14. Rfe1 {[%clk 0:02:42.5]} 14... Qd7 {[%clk 0:02:48.1]} 15. Bf1
{[%clk 0:02:36.3]} 15... Bf5 {[%clk 0:02:43.2]} 16. Qc3 {[%clk 0:02:31.4]} 16...
Bc7 {[%clk 0:02:42.7]} 17. Rad1 {[%clk 0:02:27.7]} 17... Be4 {[%clk 0:02:41.4]}
18. Nd2 {[%clk 0:02:25]} 18... Qd6 {[%clk 0:02:34.5]} 19. g3 {[%clk 0:02:24.8]}
19... f5 {[%clk 0:02:19.4]} 20. f4 {[%clk 0:02:06.9]} 20... h5 {[%clk
0:02:03.8]} 21. Nxe4 {[%clk 0:01:55.6]} 21... fxe4 {[%clk 0:01:53]} 22. h4
{[%clk 0:01:52.3]} 22... Qf6 {[%clk 0:01:49.9]} 23. d5 {[%clk 0:01:36.2]} 23...
Qxc3 {[%clk 0:01:12.5]} 24. bxc3 {[%clk 0:01:35.7]} 24... Ba5 {[%clk 0:01:12.9]}
25. Bd4 {[%clk 0:01:30]} 25... Rad8 {[%clk 0:00:56.8]} 26. Bg2 {[%clk
0:01:11.7]} 26... cxd5 {[%clk 0:00:45.7]} 27. cxd5 {[%clk 0:01:11.6]} 27... Rxd5
{[%clk 0:00:20.2]} 28. Rxe4 {[%clk 0:01:10.7]} 28... Red8 {[%clk 0:00:13.4]} 29.
Rb1 {[%clk 0:01:05.2]} 29... R5d7 {[%clk 0:00:06.9]} 30. f5 {[%clk 0:01:02.1]}
30... Ne7 {[%clk 0:00:06.6]} 31. f6 {[%clk 0:01:02.2]} 31... Nf5 {[%clk
0:00:06.1]} 32. Be5 {[%clk 0:00:57.7]} 32... Bb6+ {[%clk 0:00:02.3]} 33. Kh2
{[%clk 0:00:57.2]} 33... Rd2 {[%clk 0:00:02.4]} 34. Kh3 {[%clk 0:00:54.1]} 34...
Ne3 {[%clk 0:00:01.1]} 35. Bf3 {[%clk 0:00:53.9]} 35... Ng4 {[%clk 0:00:01.2]}
36. Bxg4 {[%clk 0:00:53.5]} 36... hxg4+ {[%clk 0:00:02.1]} 37. Rxg4 {[%clk
0:00:53.9]} 37... g6 {[%clk 0:00:03]} 38. h5 {[%clk 0:00:54.2]} 38... Re2 {[%clk
0:00:03.3]} 39. Bf4 {[%clk 0:00:52.7]} 39... Rf2 {[%clk 0:00:02.6]} 40. hxg6
{[%clk 0:00:50.8]} 40... fxg6 {[%clk 0:00:03.5]} 41. Rxg6+ {[%clk 0:00:51.3]}
41... Kf7 {[%clk 0:00:04.4]} 42. Rh6 {[%clk 0:00:51.8]} 42... Rg8 {[%clk
0:00:04.5]} 43. Re1 {[%clk 0:00:49.5]} 43... Rf3 {[%clk 0:00:04]} 44. Re7+
{[%clk 0:00:48.5]} 44... Kf8 {[%clk 0:00:04.4]} 45. Rhh7 {[%clk 0:00:46.2]} 1-0

[Event "Late-Titled-Tuesday-Blitz-July-09-2024"]
[Site "Chess.com"]
[Date "2024.07.09"]
[Round "2"]
[White "ljm509"]
[Black "Happy1712Drummer"]
[Result "0-1"]
[WhiteElo "2007"]
[BlackElo "2436"]
[TimeControl "180+1"]
[EndTime "14:18:01 PDT"]
[Termination "Happy1712Drummer won on time"]

1. e4 {[%clk 0:02:59]} 1... c5 {[%clk 0:02:56.6]} 2. Nf3 {[%clk 0:02:58.6]} 2...
d6 {[%clk 0:02:56.1]} 3. d4 {[%clk 0:02:57.9]} 3... cxd4 {[%clk 0:02:55.6]} 4.
Nxd4 {[%clk 0:02:58.8]} 4... Nf6 {[%clk 0:02:56.5]} 5. Nc3 {[%clk 0:02:58.5]}
5... a6 {[%clk 0:02:56.2]} 6. f3 {[%clk 0:02:58.3]} 6... g6 {[%clk 0:02:54.9]}
7. Be3 {[%clk 0:02:57.7]} 7... Bg7 {[%clk 0:02:54.7]} 8. Qd2 {[%clk 0:02:58.3]}
8... h5 {[%clk 0:02:53.9]} 9. Bc4 {[%clk 0:02:58.3]} 9... b5 {[%clk 0:02:53]}
10. Bb3 {[%clk 0:02:57.8]} 10... Bb7 {[%clk 0:02:52.3]} 11. O-O-O {[%clk
0:02:56.4]} 11... Qc7 {[%clk 0:02:50]} 12. Kb1 {[%clk 0:02:54.9]} 12... Nbd7
{[%clk 0:02:49.1]} 13. h4 {[%clk 0:02:42.3]} 13... Nc5 {[%clk 0:02:44.7]} 14.
Nd5 {[%clk 0:02:37]} 14... Nxd5 {[%clk 0:02:40.5]} 15. Bxd5 {[%clk 0:02:33.9]}
15... Bxd5 {[%clk 0:02:39.7]} 16. exd5 {[%clk 0:02:34.8]} 16... Na4 {[%clk
0:02:38]} 17. Rhe1 {[%clk 0:02:22.5]} 17... O-O {[%clk 0:02:13.2]} 18. Bh6
{[%clk 0:02:20.2]} 18... Rac8 {[%clk 0:01:59.3]} 19. Bxg7 {[%clk 0:02:17]} 19...
Kxg7 {[%clk 0:01:59.5]} 20. Qg5 {[%clk 0:02:10.6]} 20... Rfe8 {[%clk 0:01:39.8]}
21. g4 {[%clk 0:01:56]} 21... Qc4 {[%clk 0:01:07.3]} 22. Re3 {[%clk 0:01:27.8]}
22... Rc5 {[%clk 0:00:40.9]} 23. c3 {[%clk 0:00:05.3]} 23... Rxd5 {[%clk
0:00:26.3]} 24. Nf5+ {[%clk 0:00:02.5]} 24... Rxf5 {[%clk 0:00:25.4]} 25. gxf5
{[%clk 0:00:02.5]} 25... Qc5 {[%clk 0:00:18.7]} 26. fxg6 {[%clk 0:00:02.3]}
26... Qxg5 {[%clk 0:00:18.2]} 27. hxg5 {[%clk 0:00:02.4]} 27... Kxg6 {[%clk
0:00:16]} 28. Rxd6+ {[%clk 0:00:01.1]} 28... exd6 {[%clk 0:00:15.7]} 0-1